Cogmind - Beta 13 @@@ ROGUE MODE // 2024.05.31 @ 17:34:03 Player: Kat Result: Self-destructed Performance ------------- Evolutions (1) 500 Regions Visited (2) 400 Robots Destroyed (10) 50 Value Destroyed (168) 168 Prototype IDs (0) 0 Alien Tech Used (0) 0 Bonus (0) 0 TOTAL SCORE: 1118 Bonus ------- None Cogmind --------- Core Integrity 400/400 Matter 167/300 Energy 71/250 System Corruption 0% Temperature Cool (16) Movement Flying (117) Ox1 Location -9/Materials Parts ------- > --- POWER (1) -------- Ion Engine > --- PROPULSION (2) --- Flight Unit Flight Unit > --- UTILITY (4) ------ Light Armor Plating > --- WEAPON (2) ------- EM Pulse Gun EM Pulse Gun > --- INVENTORY (5) ---- Large Matter Pod (0) Improved Terrain Scanner Grenade Launcher Peak State ------------ > --- POWER ------------ Ion Engine > --- PROPULSION ------- Aluminum Leg Aluminum Leg > --- UTILITY ---------- Improved Terrain Scanner Seismic Detector > --- WEAPON ----------- EM Pulse Gun EM Pulse Gun > --- INVENTORY -------- Small Storage Unit [Rating: 9] Favorites ----------- Power Ion Engine Engine Ion Engine Propulsion Aluminum Leg Leg Aluminum Leg Flight Unit Flight Unit Utility Seismic Detector Device Seismic Detector Storage High-capacity Storage Unit Protection Light Armor Plating Weapon Assault Rifle Energy Gun EM Pulse Gun Ballistic Gun Assault Rifle Build | -11 -10 -9 ------- Run | Yrd Mat Mat Slots Evolved 2 | . . 2 Power . | . . . Propulsion . | . . . Utility 2 | . . 2 Weapon . | . . . Parts Attached 22 | 7 10 5 Power 3 | 1 1 1 Engine 3 | 1 1 1 Core . | . . . Reactor . | . . . Propulsion 5 | 2 3 . Treads . | . . . Leg 3 | 2 1 . Wheel . | . . . Hover . | . . . Flight 2 | . 2 . Utility 6 | 2 3 1 Device 2 | 1 1 . Storage 3 | 1 1 1 Processor . | . . . Hackware . | . . . Protection 1 | . 1 . Artifact . | . . . Weapon 8 | 2 3 3 Energy Gun 4 | 2 . 2 Energy Cannon . | . . . Ballistic Gun 4 | . 3 1 Ballistic Cannon . | . . . Launcher . | . . . Special Weapon . | . . . Impact Weapon . | . . . Slashing Weapon . | . . . Piercing Weapon . | . . . Special Melee Weapon . | . . . Unidentified Prototypes . | . . . Parts Lost . | . . . Power . | . . . Propulsion . | . . . Utility . | . . . Weapon . | . . . Highest Loss Streak . | . . . To Critical Strikes . | . . . Average Slot Usage (%) 96 | . 99 63 Engine 12 | . 13 2 Leg 25 | . 26 . Flight 2 | . 1 22 Device 13 | . 14 2 Storage 12 | . 13 2 Protection 1 | . . 11 Energy Gun 7 | . 7 16 Ballistic Gun 19 | . 20 5 Naked Turns . | . . . Heaviest Build 50 | 15 50 12 Greatest Support 20 | 20 20 8 Greatest Overweight (x) 2 | . 2 1 Average Overweight (x) 1 | . 1 . Largest Inventory Capacity 20 | 8 20 5 Average Capacity 16 | 7 19 5 Most Carried 8 | 5 8 5 Average Carried 3 | 1 4 3 Final Capacity 5 | 5 5 5 Final Carried 5 | 2 5 3 Class Distribution -------------------- 100% | Mutant Dominant Class ---------------- Mutant | -10/Materials Mutant | -9/Materials Resources | -11 -10 -9 ----------- Run | Yrd Mat Mat Matter Collected 425 | 270 97 58 Remotely . | . . . Salvage Created 310 | 121 131 58 Parts 23 | 8 12 3 Haulers Intercepted . | . . . Recyclers Shooed . | . . . Parts Field Recycled . | . . . Retrieved Matter . | . . . Parts Self-Destructed . | . . . Prevented . | . . . Kills | -11 -10 -9 ------- Run | Yrd Mat Mat Combat Hostiles Destroyed 6 | . 5 1 Guns 6 | . 5 1 Classes Destroyed 6 | 2 3 1 Builder 1 | . 1 . Tunneler 2 | 2 . . Recycler 1 | 1 . . Swarmer 3 | . 3 . Grunt 2 | . 2 . Sentry 1 | . . 1 Best Kill Streak 3 | 2 3 1 Combat Bots Only 3 | . 3 1 Max Kills in Single Turn 1 | 1 1 1 Gunslinging . | . . . Exploded . | . . . Melee . | . . . Uniques/NPCs Destroyed . | . . . Combat | -11 -10 -9 -------- Run | Yrd Mat Mat Hostile Shots Fired 60 | . 56 4 Missed 14 | . 13 1 Damage Taken 474 | . 428 46 Core 52 | . 52 . Absorbed by Shields . | . . . Core Remaining (%) 89 | 100 79 . Volleys Fired 29 | 4 23 2 Largest 2 | 2 2 2 Hottest 80 | 80 40 80 Shots Fired 58 | 8 46 4 Gun 58 | 8 46 4 Cannon . | . . . Launcher . | . . . Special . | . . . Kinetic 46 | . 46 . Thermal . | . . . Explosive . | . . . Electromagnetic 12 | 8 . 4 Robot Hit Streak 6 | 5 2 6 Robot Miss Streak 5 | 1 5 . Penetration Max . | . . . Secondary Targets . | . . . Shots Hit Robots 26 | 5 17 4 Core Hits 14 | 3 9 2 Critical Kills . | . . . Critical Parts Destroyed . | . . . Critical Strikes 1 | 1 . . Corrupt 1 | 1 . . Melee Attacks . | . . . Impact . | . . . Slashing . | . . . Piercing . | . . . Sneak Attacks . | . . . Combat Hostiles . | . . . Follow-up Attacks . | . . . Damage Inflicted 369 | 65 261 43 Guns 369 | 65 261 43 Cannons . | . . . Explosions . | . . . Melee . | . . . Ramming . | . . . Kinetic 261 | . 261 . Thermal . | . . . Explosive . | . . . Electromagnetic 108 | 65 . 43 Impact . | . . . Slashing . | . . . Piercing . | . . . Highest Corruption . | . . . Average Corruption . | . . . Corruption Purged . | . . . Corruption Blocked . | . . . Overload Shots . | . . . Overflow Damage . | . . . Projectiles . | . . . Explosions . | . . . Melee . | . . . Knockbacks . | . . . Impact . | . . . Kinetic . | . . . Secondary . | . . . Self-Inflicted Damage . | . . . Shots . | . . . Rammed . | . . . Targets Rammed . | . . . Kicked . | . . . Crushed . | . . . Highest Temperature 48 | 36 5 48 Average Temperature 18 | 16 5 27 Received Heat Transfer 126 | . 117 9 Siege Activations . | . . . Robots Corrupted . | . . . Combat Hostiles . | . . . Parts Fried 1 | 1 . . Impact Corruptions . | . . . Robots Melted . | . . . Combat Hostiles . | . . . Parts Melted . | . . . Heat Transferred . | . . . Parts Sabotaged . | . . . Parts Stolen . | . . . Parts Stripped . | . . . Power Chain Reactions . | . . . Alert | -11 -10 -9 ------- Run | Yrd Mat Mat Peak Influence 80 | 15 80 74 Initial 29 | . 9 29 Average 32 | 6 36 40 Maximum Alert Level . | . . . Low Security (%) 100 | 100 100 100 Level 1 . | . . . Level 2 . | . . . Level 3 . | . . . Level 4 . | . . . Level 5 . | . . . High Security . | . . . Max Security . | . . . Squads Dispatched 1 | . 1 . Investigation . | . . . Extermination . | . . . Reinforcement 1 | . 1 . Assault . | . . . Garrison . | . . . Intercept . | . . . Searches Triggered . | . . . Construction Impeded . | . . . Haulers Reinforced . | . . . Active Scanning Responses . | . . . Cargo Convoy Interrupts . | . . . Stealth | -11 -10 -9 --------- Run | Yrd Mat Mat Distress Signals 2 | . 2 . Communications Jammed . | . . . Distress Signals . | . . . Times Spotted 13 | . 12 1 Peak Tracking Total 4 | . 4 1 Tactical Retreats . | . . . Traps | -11 -10 -9 ------- Run | Yrd Mat Mat Traps Triggered . | . . . Indirectly . | . . . Trap Hack Attempts . | . . . Triggered . | . . . Disarmed . | . . . Reprogrammed . | . . . Reused . | . . . Traps Extracted . | . . . Installed . | . . . Triggered . | . . . Machines | -11 -10 -9 ---------- Run | Yrd Mat Mat Machines Disabled . | . . . Max in Single Turn . | . . . Machines Repaired . | . . . Machines Dismantled . | . . . Machines Sabotaged . | . . . Overloaded Fab Kills . | . . . Hacking | -11 -10 -9 --------- Run | Yrd Mat Mat Machines Accessed . | . . . Terminals . | . . . Fabricators . | . . . Repair Stations . | . . . Recycling Units . | . . . Scanalyzers . | . . . Garrison Access . | . . . Total Hacks . | . . . Successful . | . . . Failed . | . . . Catastrophic . | . . . Database Lockouts . | . . . Manual . | . . . Terminals . | . . . Fabricators . | . . . Repair Stations . | . . . Recycling Units . | . . . Scanalyzers . | . . . Garrison Access . | . . . Terminal Hacks . | . . . Fabricator Hacks . | . . . Repair Station Hacks . | . . . Recycling Unit Hacks . | . . . Scanalyzer . | . . . Garrison Access Hacks . | . . . Unauthorized Hacks . | . . . Terminals . | . . . Fabricators . | . . . Repair Stations . | . . . Recycling Units . | . . . Scanalyzers . | . . . Garrison Access . | . . . Data Cores Recovered . | . . . Used . | . . . Hacking Detections . | . . . Full Trace Events . | . . . Feedback Events . | . . . Feedback Blocked . | . . . Robot Schematics Acquired . | . . . Robots Built . | . . . Authchips . | . . . Time . | . . . Total Robot Build Rating . | . . . Part Schematics Acquired . | . . . Parts Built . | . . . Authchips . | . . . Time . | . . . Total Part Build Rating . | . . . Parts Repaired . | . . . Time . | . . . Parts Recycled . | . . . Recycled Matter . | . . . Retrieved Matter . | . . . Retrieved Components . | . . . Parts Scanalyzed . | . . . Part Schematics Acquired . | . . . Parts Damaged . | . . . Bothacking | -11 -10 -9 ------------ Run | Yrd Mat Mat Used RIF Installer . | . . . Robots Hacked . | . . . Non-combat . | . . . Combat . | . . . Robot Hacks Applied . | . . . Relay Couplers Released . | . . . Fabnet Peak Effective % . | . . . Robots Rewired . | . . . Allies Hacked . | . . . Hacks Repelled . | . . . Allies | -11 -10 -9 -------- Run | Yrd Mat Mat Total Allies . | . . . Largest Group . | . . . Highest-Rated Group . | . . . Highest-Rated Ally . | . . . Total Orders . | . . . Ally Attacks . | . . . Total Damage . | . . . Kills . | . . . Allies Corrupted . | . . . Allies Melted . | . . . Intel | -11 -10 -9 ------- Run | Yrd Mat Mat Robot Analysis Total . | . . . Derelict Logs Recovered . | . . . Drone Launches . | . . . Drone Recoveries . | . . . Exploration | -11 -10 -9 ------------- Run | Yrd Mat Mat Turns Passed 663 | 93 529 41 Spaces Moved 280 | 62 184 34 Core 14 | 14 . . Treads . | . . . Legs 213 | 48 165 . Wheels . | . . . Hover . | . . . Flight 53 | . 19 34 Fastest Speed 37 | 50 37 37 Average Speed 182 | 104 232 51 Slowest Speed 260 | 120 260 117 Overloaded Moves . | . . . Propulsion Burnouts . | . . . Robots Hopped . | . . . Cave-ins Triggered . | . . . Exploration Rate (%) 9 | 5 17 5 Regions Visited 2 Branch Regions . Pre-discovered Areas . | . . . Known Exits Taken . | . . . Unknown Exits Taken 2 | 1 1 . Scrap Searched . | . . . Spaces Dug . | . . . Terrain Destroyed . | . . . Melee . | . . . Projectile . | . . . AOE . | . . . Terrain Rammed . | . . . Walls Destroyed . | . . . Machines Disabled . | . . . Actions | -11 -10 -9 --------- Run | Yrd Mat Mat Total 383 | 82 245 56 Wait 14 | 2 4 8 Move 278 | 61 183 34 Hop . | . . . Pick Up 18 | 7 10 1 Fast Attach 3 | 1 1 1 Attach 17 | 6 8 3 Detach 10 | 1 8 1 Swap 2 | . 1 1 Drop 12 | . 7 5 Fire 29 | 4 23 2 Melee . | . . . Ram . | . . . Kick . | . . . Crush . | . . . Escape Stasis . | . . . Rewire . | . . . Trap . | . . . Miscellaneous . | . . . Route ------- -11/Scrapyard -10/Materials -9/Materials History --------- Turn | Location | Event 5 | -11/Scrapyard | Discovered new exit (range 15) 94 | -11/Scrapyard | Entered Materials 309 | -10/Materials | Build established: Mutant 620 | -10/Materials | Discovered new exit (range 10) 623 | -10/Materials | Entered another Materials area 623 | -9/Materials | Evolved 2 slots: Utility x2 664 | -9/Materials | Self-destructed Last Messages --------------- S-10 Pest destroyed. Acquired 11 matter. Acquired 13 matter. Acquired 10 matter. Acquired Flight Unit. Dropped Aluminum Leg. Dropped Hcp. Storage Unit. Acquired Lgt. Armor Plating. EXIT=FOUND PARAMETERS=UTILITY+2 LOCATION=UNKNOWN GOAL=ESCAPE Acquired Lrg. Matter Pod. Dropped Assault Rifle. Dropped Seismic Detector. Dropped Ion Engine. Dropped Autogun. Acquired Ion Engine. Y-45 Defender destroyed. Acquired 58 matter. Map ----- +----------------------------------------------------+ | ????????????????????????????????? | | ????????????????????????????????? | | ????????????????????????????????? | | ????????????????????????????????? | | ????????????????????????????????? | | ????????????????????????????????? | | ????????????????????????????????? | | ????????????????????????????????? | | ????????????????????????????????? | | ????????????????????????????????? | | ????????????????????????????????? | | ????????????????????????????????? | | ????########????????????????????? | | ????# "" #????????????????????? | | ????# ""S #????????????????????? | | ????# "" #????????????????????? | | ????# !!##???????????????????? | | ????# ! #???????????????????? | | ????# #????????????????????? | | ????#+##+######## #?????????????? | | ????# #?????????????? | | ????# #?????????????? | | ????# #?????????????? | | ????# [*! ??????????? | | ????#+##/############???????????? | | ????# @ #??????????????????? | | ????# #??????????????????? | | ????# #??????????????????? | | ????#[[[ #??????????????????? | | ????# ! #??????????????????? | | ????# #??????????????????? | | ????# #??????????????????? | | ????# ! +??????????????????? | | ????# #???## ?????????? | | ????######+### ???????? | | ??????# ???????? | | ??????# ???????? | | ??????# ???????? | | ??????#### # #####????????? | | ?????????# #######????????????? | | ?????????# #??????????????????? | | ?????????# #??????????????????? | | ?????????# #??????????????????? | | ?????????? #??????????????????? | | ?????????? #??????????????????? | | ?????????? #??????????????????? | | ?????????? #??????????????????? | | ?????????? #??????????????????? | | ?????????? #??????????????????? | | ?????????? #??????????????????? | +----------------------------------------------------+ Best States ------------- Heat Dissipation 28 Energy Generation 10 Energy Capacity 250 Matter Stores 300 Matter Capacity 450 Sight Range 16 Terrain Scan Range 16 Terrain Scan Density 10 Armor Coverage 150 Evasion (%) 62 Item Schematics ----------------- None Robot Schematics ------------------ None Fabricated ------------ Nothing Alien Tech Used ----------------- None Achievements -------------- None Challenges ------------ None Game ------ Seed BottomlessSignalRifle Manual? 0 Play Time 00:11:26 Cumulative 3.8 hours Start 2024.05.31 @ 17:16:16 End 2024.05.31 @ 17:34:03 Sessions 1 Manual Loads 0 Difficulty Rogue Special Mode None Game No. 8 Rogue 8 Adventurer 0 Explorer 0 Win Type - Total 0 Types 0/0/0/0/0/0/0/0/0 Lore% 2 Gallery% 9 Achievement% 8 Wizard Run 0 Options --------- Layout 1 ASCII 0 Keyboard 0 Movement Mouse Keybinds 0 Fullscreen 2 Font 24/Terminus Map View 50x35 Zoom Use 0% Tactical HUD 0 Map Filters NONE Filters NONE Steam 1 RUN: 7d094dc2-5660-4bd4-bdb6-2173f5baefef